fUSD/lending_fUSD_20240116
["ID","MTS","AMOUNT","RATE_DAILY","PERIOD"]
[311729058,1705366256700,-584.24,0.00022897,2]
[311729059,1705366256710,-500.0,0.00022897,2]
[311729060,1705366256719,-500.0,0.00022897,2]
[311729061,1705366256729,-967.53,0.00022897,2]
[311729062,1705366256738,-1094.5,0.00022897,2]
[311729063,1705366256749,-500.0,0.00022897,2]
[311729064,1705366256759,-500.0,0.00022897,2]
[311729065,1705366256769,-338.29664719,0.00022897,2]
[311729066,1705366256778,-500.0,0.00022897,2]
[311729067,1705366256788,-500.0,0.00022897,2]
[311729068,1705366256797,-500.0,0.00022897,2]
[311729069,1705366256806,-500.0,0.00022897,2]
[311729070,1705366256816,-972.31,0.00022897,2]
[311729071,1705366256825,-500.0,0.00022897,2]
[311729072,1705366256834,-550.98,0.00022897,2]
[311729073,1705366256843,-500.0,0.00022897,2]
[311729074,1705366256853,-500.0,0.00022897,2]
[311729075,1705366256863,-637.4,0.00022897,2]
[311729076,1705366256874,-521.34590528,0.00022897,2]
[311729077,1705366256883,-649.15,0.00022897,2]
[311729078,1705366256893,-834.89,0.00022897,2]
[311729079,1705366256902,-500.0,0.00022897,2]
[311729080,1705366256911,-500.0,0.00022897,2]
[311729081,1705366256920,-500.0,0.00022897,2]
[311729082,1705366256930,-503.89370048,0.00022897,2]
[311729083,1705366256939,-580.01,0.00022897,2]
[311729084,1705366256949,-500.0,0.00022897,2]
[311729085,1705366256958,-884.89,0.00022897,2]
[311729086,1705366256967,-839.94,0.00022897,2]
[311729087,1705366256977,-500.0,0.00022897,2]
[311729088,1705366256986,-820.22,0.00022897,2]
[311729089,1705366256996,-500.0,0.00022897,2]
[311729090,1705366257006,-500.0,0.00022897,2]
[311729091,1705366257016,-646.03,0.00022897,2]
[311729092,1705366257025,-683.31,0.00022897,2]
[311729093,1705366257035,-500.0,0.00022897,2]
[311729094,1705366257045,-2107.99,0.00022897,2]
[311729095,1705366257054,-500.0,0.00022897,2]
[311729096,1705366257257,-500.0,0.00022897,2]
[311729097,1705366257276,-500.0,0.00022897,2]
[311729098,1705366257295,-500.0,0.00022897,2]
[311729099,1705366257306,-500.0,0.00022897,2]
[311729100,1705366257316,-300.0,0.00022897,2]
[311729101,1705366257326,-1000.0,0.00022897,2]
[311729102,1705366257335,-785.95,0.00022897,2]
[311729103,1705366257345,-500.0,0.00022897,2]
[311729104,1705366257355,-641.85,0.00022897,2]
[311729105,1705366257364,-736.54,0.00022897,2]
[311729106,1705366257375,-500.0,0.00022897,2]
[311729107,1705366257385,-500.0,0.00022897,2]
[311729108,1705366257395,-584.24,0.00022897,2]
[311729109,1705366257405,-500.0,0.00022897,2]
[311729110,1705366257414,-500.0,0.00022897,2]
[311729111,1705366257423,-500.0,0.00022897,2]
[311729112,1705366257432,-500.0,0.00022897,2]
[311729113,1705366257442,-500.0,0.00022897,2]
[311729114,1705366257451,-517.84015485,0.00022897,2]
[311729115,1705366257461,-534.43,0.00022897,2]
[311729116,1705366257471,-818.7,0.00022897,2]
[311729117,1705366257482,-500.0,0.00022897,2]
[311729118,1705366257492,-532.2,0.00022897,2]
[311729119,1705366257502,-500.0,0.00022897,2]
[311729120,1705366257511,-500.0,0.00022897,2]
[311729121,1705366257521,-870.56,0.00022897,2]
[311729122,1705366257531,-541.26445713,0.00022897,2]
[311729123,1705366257540,-674.93,0.00022897,2]
[311729124,1705366257550,-788.27,0.00022897,2]
[311729125,1705366257559,-654.12,0.00022897,2]
[311729126,1705366257569,-801.58,0.00022897,2]
[311729127,1705366257579,-601.33655596,0.00022897,2]
[311729128,1705366257589,-500.0,0.00022897,2]
[311729129,1705366257598,-500.0,0.00022897,2]
[311729130,1705366257608,-500.0,0.00022897,2]
[311729131,1705366257618,-525.53,0.00022897,2]
[311729132,1705366257630,-500.0,0.00022897,2]
[311729133,1705366257640,-500.0,0.00022897,2]
[311729134,1705366257649,-519.71326037,0.00022897,2]
[311729135,1705366257659,-841.79,0.00022897,2]
[311729136,1705366257669,-500.0,0.00022897,2]
[311729137,1705366257678,-722.27,0.00022897,2]
[311729138,1705366257688,-500.0,0.00022897,2]
[311729139,1705366257698,-625.54,0.00022897,2]
[311729140,1705366257708,-779.57,0.00022897,2]
[311729141,1705366257717,-500.0,0.00022897,2]
[311729142,1705366257727,-809.28,0.00022897,2]
[311729143,1705366257737,-500.0,0.00022897,2]
[311729144,1705366257747,-500.0,0.00022897,2]
[311729145,1705366257757,-500.0,0.00022897,2]
[311729146,1705366257767,-500.0,0.00022897,2]
[311729147,1705366257777,-519.47,0.00022897,2]
[311729148,1705366257788,-500.0,0.00022897,2]
[311729149,1705366257798,-500.0,0.00022897,2]
[311729150,1705366257808,-500.0,0.00022897,2]
[311729151,1705366257818,-512.29,0.00022897,2]
[311729152,1705366257828,-752.03,0.00022897,2]
[311729153,1705366257839,-500.0,0.00022897,2]
[311729154,1705366257849,-500.0,0.00022897,2]
[311729155,1705366257859,-599.9,0.00022897,2]
[311729156,1705366257868,-500.0,0.00022897,2]
[311729157,1705366257881,-500.0,0.00022897,2]
[311729158,1705366257892,-1000.0,0.00022897,2]
[311729159,1705366257901,-500.0,0.00022897,2]
[311729160,1705366257911,-500.0,0.00022897,2]
[311729161,1705366257921,-500.0,0.00022897,2]
[311729162,1705366257930,-517.64183195,0.00022897,2]
[311729163,1705366257940,-298.64079686,0.00022897,2]
[311729164,1705366257950,-500.0,0.00022897,2]
[311729165,1705366257959,-500.0,0.00022897,2]
[311729166,1705366257970,-500.0,0.00022897,2]
[311729167,1705366257980,-500.0,0.00022897,2]
[311729168,1705366257989,-968.06,0.00022897,2]
[311729169,1705366257998,-500.0,0.00022897,2]
[311729170,1705366258008,-810.08,0.00022897,2]
[311729171,1705366258017,-500.0,0.00022897,2]
[311729172,1705366258026,-653.36,0.00022897,2]
[311729173,1705366258036,-500.0,0.00022897,2]
[311729174,1705366258046,-512.99156572,0.00022897,2]
[311729175,1705366258055,-500.0,0.00022897,2]
[311729176,1705366258065,-637.03,0.00022897,2]
[311729177,1705366258074,-500.0,0.00022897,2]
[311729178,1705366258084,-500.0,0.00022897,2]
[311729179,1705366258094,-557.98,0.00022897,2]
[311729180,1705366258105,-569.42,0.00022897,2]
[311729181,1705366258115,-500.0,0.00022897,2]
[311729182,1705366258125,-500.0,0.00022897,2]
[311729183,1705366258135,-500.0,0.00022897,2]
[311729184,1705366258145,-166.26670033,0.00022897,2]
[311729185,1705366258154,-500.0,0.00022897,2]
[311729186,1705366258163,-500.0,0.00022897,2]
[311729187,1705366258173,-500.0,0.00022897,2]
[311729188,1705366258182,-742.41,0.00022897,2]
[311729189,1705366258192,-500.0,0.00022897,2]
[311729190,1705366258201,-865.62,0.00022897,2]
[311729191,1705366258211,-556.83,0.00022897,2]
[311729192,1705366258221,-500.0,0.00022897,2]
[311729193,1705366258230,-500.0,0.00022897,2]
[311729194,1705366258239,-583.86,0.00022897,2]
[311729195,1705366258249,-500.0,0.00022897,2]
[311729196,1705366258259,-500.0,0.00022897,2]
[311729197,1705366258268,-500.0,0.00022897,2]
[311729198,1705366258278,-500.0,0.00022897,2]
[311729199,1705366258288,-500.0,0.00022897,2]
[311729200,1705366258297,-500.0,0.00022897,2]
[311729201,1705366258306,-551.02,0.00022897,2]
[311729202,1705366258316,-500.0,0.00022897,2]
[311729203,1705366258325,-500.0,0.00022897,2]
[311729204,1705366258334,-500.0,0.00022897,2]
[311729205,1705366258344,-907.21,0.00022897,2]
[311729206,1705366258354,-500.0,0.00022897,2]
[311729207,1705366258363,-217.65647918,0.00022897,2]
[311729208,1705366258373,-500.0,0.00022897,2]
[311729209,1705366258383,-500.0,0.00022897,2]
[311729210,1705366258392,-500.0,0.00022897,2]
[311729211,1705366258401,-600.0,0.00022897,2]
[311729212,1705366258411,-500.0,0.00022897,2]
[311729213,1705366258420,-500.0,0.00022897,2]
[311729214,1705366258430,-500.0,0.00022897,2]
[311729215,1705366258439,-708.74,0.00022897,2]
[311729216,1705366258448,-595.72,0.00022897,2]
[311729217,1705366258457,-500.0,0.00022897,2]
[311729218,1705366258466,-700.67,0.00022897,2]
[311729219,1705366258476,-552.59,0.00022897,2]
[311729220,1705366258485,-500.0,0.00022897,2]
[311729221,1705366258495,-500.0,0.00022897,2]
[311729222,1705366258504,-500.0,0.00022897,2]
[311729223,1705366258514,-500.0,0.00022897,2]
[311729224,1705366258523,-500.0,0.00022897,2]
[311729225,1705366258533,-500.0,0.00022897,2]
[311729226,1705366258542,-500.0,0.00022897,2]
[311729227,1705366258552,-500.0,0.00022897,2]
[311729228,1705366258562,-205.09468428,0.00022897,2]
[311729229,1705366258571,-500.0,0.00022897,2]
[311729230,1705366258581,-500.0,0.00022897,2]
[311729231,1705366258590,-1197.13,0.00022897,2]
[311729232,1705366258600,-500.0,0.00022897,2]
[311729233,1705366258610,-500.0,0.00022897,2]
[311729234,1705366258621,-249.89499827,0.00022897,2]
[311729235,1705366258631,-668.02,0.00022897,2]
[311729236,1705366258642,-500.0,0.00022897,2]
[311729237,1705366258654,-1278.45,0.00022898,2]
[311729238,1705366258663,-151.0,0.00022899,7]
[311729239,1705366258673,-151.0,0.00022899,7]
[311729240,1705366258683,-500.0,0.00022899,2]
[311729241,1705366258694,-500.0,0.00022899,2]
[311729242,1705366258704,-500.0,0.00022899,2]
[311729243,1705366258714,-500.0,0.00022899,2]
[311729244,1705366258724,-500.0,0.00022899,2]
[311729245,1705366258734,-500.0,0.00022899,2]
[311729246,1705366258744,-500.0,0.00022899,2]
[311729247,1705366258754,-670.68,0.00022899,2]
[311729248,1705366258764,-1178.29,0.00022899,2]
[311729249,1705366258774,-510.45674077,0.00022899,2]
[311729250,1705366258784,-500.0,0.00022899,2]
[311729251,1705366258794,-500.0,0.00022899,2]
[311729252,1705366258804,-500.0,0.00022899,2]
[311729253,1705366258813,-500.0,0.00022899,2]
[311729254,1705366258823,-594.21,0.00022899,2]
[311729255,1705366258832,-583.66,0.00022899,2]
[311729256,1705366258842,-500.0,0.00022899,2]
[311729257,1705366258851,-500.0,0.00022899,2]
[311729258,1705366258861,-500.0,0.00022899,2]
[311729259,1705366258870,-500.0,0.00022899,2]
[311729260,1705366258880,-827.17,0.00022899,2]
[311729261,1705366258890,-500.0,0.00022899,2]
[311729262,1705366258900,-500.0,0.00022899,2]
[311729263,1705366258909,-273.49440669,0.00022899,2]
[311729264,1705366259639,-532.23559331,0.00022899,2]
[311729265,1705366259648,-849.97,0.00022899,2]
[311729266,1705366259658,-1281.04,0.00022899,2]
[311729267,1705366259668,-1443.91,0.00022899,2]
[311729268,1705366259677,-1171.48,0.00022899,2]
[311729269,1705366259687,-1221.86,0.00022899,2]
[311729270,1705366259696,-1052.68,0.00022899,2]
[311729271,1705366259705,-704.09,0.00022899,2]
[311729272,1705366259715,-793.0,0.00022899,2]
[311729273,1705366259724,-500.0,0.00022899,2]
[311729274,1705366259733,-983.45,0.00022899,2]
[311729275,1705366259742,-523.14,0.00022899,2]
[311729276,1705366259751,-1207.85,0.00022899,2]
[311729277,1705366259760,-500.0,0.00022899,2]
[311729278,1705366259770,-500.0,0.00022899,2]
[311729279,1705366259779,-848.31,0.00022899,2]
[311729280,1705366259789,-1060.15,0.00022899,2]
[311729281,1705366259798,-764.1,0.00022899,2]
[311729282,1705366259807,-786.74,0.00022899,2]
[311729283,1705366259816,-500.0,0.00022899,2]
[311729284,1705366259825,-756.82,0.00022899,2]
[311729285,1705366259835,-534.66,0.00022899,2]
[311729286,1705366259844,-1532.14,0.00022899,2]
[311729287,1705366259853,-500.0,0.00022899,2]
[311729288,1705366259862,-770.88,0.00022899,2]
[311729289,1705366259872,-1178.63,0.00022899,2]
[311729290,1705366259881,-1645.91,0.00022899,2]
[311729291,1705366259891,-739.22,0.00022899,2]
[311729292,1705366259900,-543087.58409019,0.000229,2]
[311729293,1705366259912,-11116.3483999,0.000229,2]
[311729294,1705366260971,-428.27476382,0.00022187,2]
[311729295,1705366260983,-4953.47523618,0.00022187,2]
[311729296,1705366260992,-1457.12,0.00022187,2]
[311729297,1705366261002,-5440.4877654,0.00022187,2]
[311729298,1705366261012,-500.0,0.00022461,2]
[311729299,1705366261021,-98.40732829,0.00022461,2]
[311729300,1705366261168,-1037.72523618,0.00022461,2]
[311729301,1705366262214,1000.0,0.00022088,2]
[311729303,1705366298229,31443.0423,0.00022088,2]
[311729304,1705366309919,411.63,0.00019949,2]
[311729305,1705366324625,1757.2381,0.00022087,2]
[311729306,1705366353766,7500.0,0.00022088,2]
[311729311,1705366367758,483.25479146,0.00017748,2]
[311729312,1705366382135,4238.05252954,0.00021963,2]
[311729315,1705366400904,728.00554382,0.00021,2]
[311729316,1705366415752,250.0,0.00021918,2]
[311729318,1705366430028,500.0,0.00022187,7]
[311729319,1705366442520,170.61,0.00021737,2]
[311729324,1705366492375,706.48,0.00022186,5]
[311729325,1705366505890,282.25366019,0.00021737,2]
[311729326,1705366511532,224.63428457,0.00021737,2]
[311729327,1705366511772,357.84158297,0.00021737,2]
[311729328,1705366512067,283.29816887,0.00021737,2]
[311729330,1705366522707,179.12,0.00021573,2]
[311729331,1705366526405,613.11,0.00022188,5]
[311729332,1705366532984,177.44,0.00021751,2]
[311729333,1705366541906,200.0,0.00021536,2]
[311729336,1705366571179,638.52,0.0002149,2]
[311729341,1705366616464,539.64671737,0.00022086,2]
[311729350,1705366641664,154.45,0.00021535,2]
[311729351,1705366642858,4925.05611101,0.00022086,2]
[311729359,1705366670839,169.61572586,0.00022086,2]
[311729360,1705366681824,495.09877111,0.00022086,2]
[311729361,1705366688167,3945.35692779,0.00021961,2]
[311729362,1705366712027,443.0,0.00021963,2]
[311729363,1705366718271,3050.4491,0.00022086,2]
[311729364,1705366724570,352.01,0.00021186,2]
[311729365,1705366731246,9170.5627,0.00022086,2]
[311729366,1705366731479,587.56,0.00022187,5]
[311729367,1705366739776,677.04,0.00022185,5]
[311729368,1705366744317,1000.0,0.00022085,2]
[311729369,1705366747252,5490.7983,0.00022086,2]
[311729370,1705366752907,726.59734054,0.00022084,2]
[311729371,1705366755581,414.75781816,0.00022084,5]
[311729372,1705366775017,314.05012087,0.00022084,2]
[311729373,1705366775447,441.51288858,0.00022084,2]
[311729374,1705366777498,441.51288854,0.00022084,2]
[311729375,1705366778896,565.05399575,0.00022084,2]
[311729376,1705366779461,441.51288854,0.00022085,2]
[311729377,1705366781469,441.51288854,0.00022085,2]
[311729378,1705366783484,441.51288854,0.00022085,2]
[311729379,1705366784098,3283.37074066,0.00022084,2]
[311729380,1705366784722,263.27381778,0.00022084,2]
[311729382,1705366802487,100000.0,0.00022086,2]
[311729383,1705366803630,359.1159,0.00022085,2]
[311729384,1705366807922,402.63,0.00019266,2]
[311729385,1705366808634,402.63,0.0002153,2]
[311729386,1705366810565,750.0,0.000205,2]
[311729387,1705366814542,474.537,0.00022086,2]
[311729389,1705366865822,563.08,0.00022187,5]
[311729391,1705366875170,330.0658474,0.00022084,2]
[311729392,1705366878263,184.1942911,0.00022084,2]
[311729393,1705366878698,374.58839927,0.00022084,2]
[311729394,1705366903786,410.21116239,0.00022084,5]
[311729395,1705366909286,376.70266382,0.00022084,2]
[311729396,1705366917020,245000.0,0.00022083,2]
[311729397,1705366917327,190.46428984,0.00022083,2]
[311729398,1705366920856,14732.1511,0.00022082,2]
[311729399,1705366920885,2188.91382712,0.00022084,2]
[311729401,1705366933262,1076.88969684,0.00022084,2]
[311729404,1705366983136,51101.0225,0.00022083,2]
[311729405,1705366984355,648.83,0.00022184,5]
[311729406,1705366989308,250.0,0.00021918,2]
[311729407,1705366997022,220.5,0.00021183,2]
[311729408,1705366997238,220.5,0.00021294,2]
[311729409,1705366997533,220.5,0.00021406,2]
[311729410,1705366997712,220.5,0.00021517,2]
[311729411,1705366997928,220.5,0.00021629,2]
[311729412,1705366998099,220.5,0.0002174,2]
[311729413,1705366998309,220.5,0.00021852,2]
[311729414,1705366998529,220.5,0.00021963,2]
[311729415,1705366998860,220.5,0.00022075,2]
[311729418,1705367013402,221504.0,0.00021739,2]
[311729423,1705367035212,184.1942911,0.00022082,2]
[311729424,1705367038573,55555.0,0.00022087,2]
[311729425,1705367039795,251.13510922,0.00022082,2]
[311729427,1705367044141,30892.25800715,0.00022081,2]
[311729429,1705367049993,328.16892992,0.00022082,5]
[311729430,1705367060015,1459.27588474,0.00022082,2]
[311729431,1705367069675,220.04389826,0.00022082,2]
[311729432,1705367072365,840.0,0.00021183,2]
[311729433,1705367086618,155.45,0.00021342,2]
[311729434,1705367087124,155.45,0.00021527,2]
[311729435,1705367087248,155.45,0.00021712,2]
[311729436,1705367087471,155.45,0.00021898,2]
[311729437,1705367087702,155.45,0.00022083,2]
[311729438,1705367102804,189.7301635,0.00020244,2]
[311729439,1705367104686,223.79783694,0.00020244,2]
[311729440,1705367107056,173.9005887,0.00022035,2]
[311729441,1705367108818,500.0,0.00022184,7]
[311729442,1705367112664,173.90058868,0.0002205,2]
[311729443,1705367112697,152.0,0.00024988,15]
[311729444,1705367115372,160012.9555,0.00022082,2]
[311729445,1705367117024,173.90058868,0.00022065,2]
[311729446,1705367117117,150.0,0.00020244,2]
[311729447,1705367119463,717.92646456,0.0002208,2]
[311729448,1705367119609,204.29770003,0.00022049,2]
[311729449,1705367122013,173.90058868,0.0002208,2]
[311729450,1705367167125,155.13784063,0.0002129,2]
[311729451,1705367173530,167.42340614,0.0002208,2]
[311729452,1705367179934,756.61,0.00021183,2]
[311729453,1705367181969,184.1942911,0.0002208,2]
[311729454,1705367195945,972.85058982,0.00022085,2]
[311729455,1705367210761,11569.5895,0.00022081,2]
[311729456,1705367211366,159.35,0.00021394,2]
[311729457,1705367211598,159.35,0.00021704,2]
[311729458,1705367211818,159.35,0.00022014,2]
[311729459,1705367243371,621.8,0.00022181,5]
[311729460,1705367263216,220.04389826,0.0002208,2]
[311729462,1705367284069,527.15542661,0.00022176,7]
[311729463,1705367284728,204.0,0.0002137,2]
[311729464,1705367293442,374.87,0.00019265,2]
[311729465,1705367293632,374.87,0.00021529,2]
[311729466,1705367299829,478.61764304,0.0002208,2]
[311729471,1705367321315,55555.0,0.00022085,2]
[311729472,1705367336220,648.56705988,0.0002208,2]
[311729473,1705367354980,262.53514392,0.0002208,5]
[311729474,1705367360717,200.0,0.00021182,2]
[311729478,1705367414293,220.04389826,0.0002208,2]
[311729492,1705367431764,-1255.53256283,0.00022106,2]
[311729493,1705367431774,-196.8387694,0.00022106,2]
[311729494,1705367431783,-1889.25604781,0.00022106,2]
[311729495,1705367431792,-2019.39924894,0.00022107,2]
[311729496,1705367431801,-286.52776858,0.00022107,2]
[311729497,1705367431810,-1767.25939778,0.00022108,2]
[311729498,1705367431820,-5330.96781737,0.00022108,2]
[311729499,1705367431829,-155.0,0.00022109,2]
[311729500,1705367431839,-312.00896411,0.00022109,2]
[311729501,1705367431848,-1043.44502482,0.00022109,2]
[311729502,1705367431857,-246.56217999,0.0002211,2]
[311729503,1705367431866,-283.00893844,0.00022114,2]
[311729504,1705367431876,-3160.44886335,0.00022145,2]
[311729505,1705367431885,-30892.25800709,0.00022155,2]
[311729506,1705367431895,-756.61,0.00022161,2]
[311729507,1705367431904,-800.0,0.00022164,2]
[311729508,1705367431913,-1133.92,0.00022164,2]
[311729509,1705367431922,-249.73612641,0.00022166,2]
[311729510,1705367431931,-249.73612641,0.00022168,2]
[311729511,1705367431941,-249.73612641,0.00022168,2]
[311729512,1705367431949,-406.90321448,0.00022175,2]
[311729513,1705367431958,-312.42,0.00022176,2]
[311729514,1705367431967,-8226.7821063,0.00022177,2]
[311729584,1705367432526,595.89,0.00022177,5]
[311729589,1705367433365,158.84,0.0002118,2]
[311729612,1705367438230,-347.697945,0.00022176,2]
[311729613,1705367438242,-1628.962055,0.00022176,2]
[311729614,1705367438252,-2065803.59988422,0.00022176,2]
[311729615,1705367438261,-1048228.08412286,0.00022177,2]
[311729616,1705367438270,-1184.96,0.00022177,2]
[311729617,1705367438279,-3927.97,0.00022177,2]
[311729618,1705367438289,-2466.28,0.00022177,2]
[311729619,1705367438299,-500.0,0.00022177,2]
[311729620,1705367438309,-500.0,0.00022177,2]
[311729621,1705367438318,-834.98,0.00022177,2]
[311729622,1705367438328,-2030.36,0.00022177,2]
[311729623,1705367438338,-16302.92,0.00022177,2]
[311729624,1705367438348,-1347.82,0.00022177,2]
[311729625,1705367438358,-1237.85,0.00022177,2]
[311729626,1705367438367,-1447.84,0.00022177,2]
[311729627,1705367438377,-1403.26,0.00022177,2]
[311729628,1705367438387,-3433.26,0.00022177,2]
[311729629,1705367438397,-1844.97,0.00022177,2]
[311729630,1705367438407,-1173.52,0.00022177,2]
[311729631,1705367438418,-1595.43,0.00022177,2]
[311729632,1705367438429,-1615.39,0.00022177,2]
[311729633,1705367438438,-1170.01,0.00022177,2]
[311729634,1705367438448,-1113.5,0.00022177,2]
[311729635,1705367438458,-500.0,0.00022177,2]
[311729636,1705367438467,-1814.24,0.00022177,2]
[311729637,1705367438477,-967.27,0.00022177,2]
[311729638,1705367438486,-856.14,0.00022177,2]
[311729639,1705367438496,-2339.5,0.00022177,2]
[311729640,1705367438506,-1027.0,0.00022177,2]
[311729641,1705367438518,-3952.03,0.00022177,2]
[311729642,1705367438530,-865.16,0.00022177,2]
[311729643,1705367438541,-174.77794443,0.00022177,2]
[311729644,1705367438551,-833.87433384,0.00022177,2]
[311729645,1705367438564,-3172.68654427,0.00022177,2]
[311729646,1705367438574,-318.525335,0.0002218,2]
[311729647,1705367438583,-244.99390118,0.0002218,2]
[311729648,1705367438594,-946.9,0.00022181,2]
[311729649,1705367438606,-1382.59,0.00022181,2]
[311729650,1705367438617,-5349.57,0.00022181,2]
[311729651,1705367438629,-1032.75,0.00022181,2]
[311729652,1705367438641,-2244.41,0.00022181,2]
[311729653,1705367438652,-9767.43,0.00022181,2]
[311729654,1705367438662,-1588.97,0.00022181,2]
[311729655,1705367438672,-14702.97,0.00022181,2]
[311729656,1705367438681,-798.6,0.00022181,2]
[311729657,1705367438692,-4716.94,0.00022181,2]
[311729658,1705367438704,-3408.86,0.00022181,2]
[311729659,1705367438715,-28462.82,0.00022181,2]
[311729660,1705367438725,-2191.53,0.00022181,2]
[311729661,1705367438734,-1489.4,0.00022181,2]
[311729662,1705367438744,-1945.41,0.00022181,2]
[311729663,1705367438754,-1054.19,0.00022181,2]
[311729664,1705367438764,-5339.57,0.00022181,2]
[311729665,1705367438774,-1700.51,0.00022181,2]
[311729666,1705367438784,-798.99,0.00022181,2]
[311729667,1705367438793,-889.04,0.00022181,2]
[311729668,1705367438803,-964.92,0.00022181,2]
[311729669,1705367438813,-1928.11,0.00022181,2]
[311729670,1705367438823,-2074.73,0.00022181,2]
[311729671,1705367438833,-592.43,0.00022181,2]
[311729672,1705367438843,-6513.01,0.00022181,2]
[311729673,1705367438853,-1637.97,0.00022181,2]
[311729674,1705367438862,-412.32446091,0.00022181,2]
[311729675,1705367438872,-178.26442698,0.00022181,2]
[311729676,1705367438883,-276.45356326,0.00022181,2]
[311729677,1705367438892,-4202.22059993,0.00022181,2]
[311729678,1705367438902,-227.94064555,0.00022181,2]
[311729679,1705367438913,-267.73480268,0.00022181,2]
[311729680,1705367438922,-360.45961298,0.00022181,2]
[311729681,1705367438932,-198.90112594,0.00022181,2]
[311729682,1705367438941,-316.17811747,0.00022181,2]
[311729683,1705367438951,-2615.58378524,0.00022181,2]
[311729684,1705367438961,-650.38547112,0.00022181,2]
[311729685,1705367438970,-155.75041415,0.00022181,2]
[311729686,1705367438980,-10240.26127827,0.00022181,2]
[311729687,1705367438990,-229.73352064,0.00022181,2]
[311729688,1705367439000,-189.81848372,0.00022181,2]
[311729689,1705367439009,-2144.43375818,0.00022181,2]
[311729690,1705367439020,-157.15232908,0.00022181,2]
[311729691,1705367439029,-627.06633555,0.00022181,2]
[311729692,1705367439040,-167.36261621,0.00022181,2]
[311729693,1705367439051,-451.35943019,0.00022181,2]
[311729694,1705367439062,-198.80388018,0.00022181,2]
[311729695,1705367439073,-220.63832879,0.00022181,2]
[311729696,1705367439083,-155.61243303,0.00022181,2]
[311729697,1705367439093,-155.54154941,0.00022181,2]
[311729698,1705367439102,-523.58449934,0.00022181,2]
[311729699,1705367439111,-1072.12657304,0.00022181,2]
[311729700,1705367439124,-599.29511904,0.00022181,2]
[311729701,1705367439135,-155.0,0.00022181,2]
[311729702,1705367439145,-207.70456448,0.00022181,2]
[311729703,1705367439155,-225.95499328,0.00022181,2]
[311729704,1705367439166,-156.07376851,0.00022181,2]
[311729705,1705367439175,-195.57844609,0.00022181,2]
[311729706,1705367439185,-725.58,0.00022181,2]
[311729707,1705367439195,-999.99,0.00022181,2]
[311729708,1705367439208,-493.82,0.00022181,2]
[311729709,1705367439219,-734.57,0.00022182,2]
[311729710,1705367439230,-103055.29318076,0.00022182,2]
[311729711,1705367439241,-13480.8,0.00022182,2]
[311729712,1705367439251,-216.36831103,0.00022183,2]
[311729713,1705367439260,-235.26160349,0.00022183,2]
[311729714,1705367439269,-398.91668285,0.00022183,2]
[311729715,1705367439278,-155.0,0.00022183,2]
[311729716,1705367439287,-908.34393957,0.00022183,2]
[311729717,1705367439297,-156.99421172,0.00022183,2]
[311729718,1705367439308,-161.392586,0.00022183,2]
[311729719,1705367439318,-235.96282679,0.00022183,2]
[311729720,1705367439327,-259.11941183,0.00022183,2]
[311729721,1705367439336,-479.48754754,0.00022183,2]